[Event "Israel-ch Women 2021"]
[Site "Haifa"]
[Date "2021.03.08"]
[Round "2.22"]
[White "Aleksandrova, Aleksandra"]
[Black "Haitovich, Avital"]
[Result "1/2-1/2"]
[ECO "D00"]
[WhiteElo "1769"]
[BlackElo "1981"]
[Annotator "RC"]
[PlyCount "156"]
[EventDate "2021.01.10"]
[EventType "swiss"]
[EventCountry "ISR"]
[SourceTitle "playchess.com"]
[Source "ChessBase"]
[SourceQuality "1"]
[TimeControl "40/5400+30:3600+30"]

1. d4 {[%emt 0:00:00]} d5 {[%emt 0:00:00]} 2. e3 {[%emt 0:00:00]} Nf6 {[%emt 0:00:00]} 3. Bd3 {[%emt 0:00:00]} e6 {[%emt 0:00:00]} 4. Nd2 {[%emt 0:00:00]} c5 {[%emt 0:00:13]} 5. c3 {[%emt 0:00:00]} Nc6 {[%emt 0:00:09]} 6. f4 {[%emt 0:00:46]} Bd6 {[%emt 0:03:13]} 7. Qf3 {[%emt 0:00:22]} Qc7 {[%emt 0:08:16]} 8. Ne2 {[%emt 0:02:07]} cxd4 {[%emt 0:16:04]} 9. exd4 {[%emt 0:00:59]} Bd7 {[%emt 0:03:36]} 10. h3 {[%emt 0:06:41]} h6 {[%emt 0:03:34]} 11. g4 {[%emt 1:24:35]} O-O-O {[%emt 0:06:11]} 12. b4 {[%emt 0:00:00]} Ne7 {[%emt 0:13:27]} 13. a4 {[%emt 0:00:00]} Ne4 {[%emt 0:11:24]} 14. Bxe4 {[%emt 0:00:00]} dxe4 {[%emt 0:00:09]} 15. Nxe4 {[%emt 0:00:00]} Bc6 {[%emt 0:03:52]} 16. b5 {[%emt 0:00:00]} Bd5 {[%emt 0:06:58]} 17. Rg1 {[%emt 0:00:00]} Bxe4 {[%emt 0:01:47]} 18. Qxe4 {[%emt 0:00:00]} Nd5 {[%emt 0:00:52]} 19. Bd2 {[%emt 0:00:00]} Qc4 {[%emt 0:02:13]} 20. Rg3 {[%emt 0:00:00]} Kb8 {[%emt 0:06:23]} 21. Qd3 {[%emt 0:00:00]} Qxd3 {[%emt 0:01:50]} 22. Rxd3 {[%emt 0:00:00]} Rc8 {[%emt 0:00:16]} 23. Rf3 {[%emt 0:00:00]} Rhe8 {[%emt 0:02:23]} 24. Ng3 {[%emt 0:00:00]} f6 {[%emt 0:05:00]} 25. Kd1 {[%emt 0:00:00]} Rc4 {[%emt 0:00:46]} 26. Kc2 {[%emt 0:00:00]} Rec8 {[%emt 0:02:56]} 27. Kb3 {[%emt 0:00:00]} R4c7 {[%emt 0:00:36]} 28. Re1 {[%emt 0:00:00]} Bxf4 {[%emt 0:01:08]} 29. Rxf4 {[%emt 0:00:00]} Nxf4 {[%emt 0:00:12]} 30. Bxf4 {[%emt 0:00:00]} e5 {[%emt 0:00:24]} 31. dxe5 {[%emt 0:00:00]} Rxc3+ {[%emt 0:00:19]} 32. Kb2 {[%emt 0:00:00]} g5 {[%emt 0:01:05]} 33. Rc1 {[%emt 0:00:00]} Rxc1 {[%emt 0:00:31]} 34. Bxc1 {[%emt 0:00:00]} fxe5 {[%emt 0:00:02]} 35. Be3 {[%emt 0:00:00]} b6 {[%emt 0:00:54]} 36. Nf5 {[%emt 0:00:00]} Rh8 {[%emt 0:00:26]} 37. Kc3 {[%emt 0:01:38]} Kc7 {[%emt 0:00:12]} 38. Kc4 {[%emt 0:00:09]} h5 {[%emt 0:00:54]} 39. Kd5 {[%emt 0:06:21]} hxg4 {[%emt 0:00:07]} 40. hxg4 {[%emt 0:00:01]} Rh1 {[%emt 0:00:39]} 41. a5 {[%emt 1:03:19]} Rb1 {[%emt 1:00:27]} 42. axb6+ {[%emt 0:01:46]} axb6 {[%emt 0:00:01]} 43. Kc4 {[%emt 0:01:01]} Ra1 {[%emt 0:00:00]} 44. Nh6 {[%emt 0:00:00]} Re1 {[%emt 0:00:00]} 45. Bxg5 {[%emt 0:00:00]} Re4+ {[%emt 0:00:00]} 46. Kc3 {[%emt 0:00:00]} Kd6 {[%emt 0:00:00]} 47. Nf5+ {[%emt 0:00:00]} Ke6 {[%emt 0:00:00]} 48. Ne3 {[%emt 0:00:00]} Kd7 {[%emt 0:00:00]} 49. Bh6 {[%emt 0:00:00]} Ke6 {[%emt 0:00:48]} 50. Kb3 {[%emt 0:00:00]} Kf7 {[%emt 0:03:21]} 51. Nc4 {[%emt 0:00:00]} Kg6 {[%emt 0:00:35]} 52. Bd2 {[%emt 0:00:28]} Kf6 {[%emt 0:01:01]} 53. g5+ {[%emt 0:00:33]} Kg6 {[%emt 0:00:20]} 54. Nxb6 {[%emt 0:00:37]} Rd4 {[%emt 0:00:44]} 55. Nc4 {[%emt 0:00:43]} Rd5 {[%emt 0:00:30]} 56. Kb4 {[%emt 0:00:53]} e4 {[%emt 0:00:33]} 57. b6 {[%emt 0:01:02]} Rd8 {[%emt 0:00:25]} 58. Be3 {[%emt 0:01:23]} Kf5 {[%emt 0:00:36]} 59. Kc5 {[%emt 0:00:22]} Rc8+ {[%emt 0:00:26]} 60. Kd5 {[%emt 0:00:15]} Rd8+ {[%emt 0:00:40]} 61. Nd6+ {[%emt 0:00:18]} Kg4 {[%emt 0:00:13]} 62. Kc6 {[%emt 0:00:40]} Kf3 {[%emt 0:00:29]} 63. Kc7 {[%emt 0:00:54]} Rg8 {[%emt 0:00:24]} 64. Nc4 {[%emt 0:00:13]} Rg7+ {[%emt 0:00:23]} 65. Kc8 {[%emt 0:00:28]} Rg8+ {[%emt 0:00:37]} 66. Kb7 {[%emt 0:00:03]} Rg7+ {[%emt 0:00:13]} 67. Ka8 {[%emt 0:00:03]} Rg8+ {[%emt 0:00:26]} 68. Ka7 {[%emt 0:00:02]} Rg7+ {[%emt 0:00:06]} 69. b7 {[%emt 0:00:07]} Rc7 {[%emt 0:00:31]} 70. Nb6 {[%emt 0:01:31]} Rg7 {[%emt 0:01:31]} 71. Ka8 {[%emt 0:00:20]} Rxb7 {[%emt 0:00:33]} 72. Kxb7 {[%emt 0:00:02]} Kxe3 {[%emt 0:00:02]} 73. Nd5+ {[%emt 0:00:19]} Kd4 {[%emt 0:00:18]} 74. Kc6 {[%emt 0:00:14]} Ke5 {[%emt 0:00:42]} 75. Ne3 {[%emt 0:05:02]} Ke6 {[%emt 0:00:09]} 76. Kc5 {[%emt 0:00:42]} Kf7 {[%emt 0:00:21]} 77. Kd5 {[%emt 0:00:20]} Kg6 {[%emt 0:00:02]} 78. Kxe4 {[%emt 0:00:02]} Kxg5 {[%emt 0:00:07]} 1/2-1/2

[Event "Israel-ch Women 2021"]
[Site "Haifa"]
[Date "2021.03.08"]
[Round "2.23"]
[White "Kochavi, Dana"]
[Black "Gadasi, Noam"]
[Result "1/2-1/2"]
[ECO "B88"]
[WhiteElo "1572"]
[BlackElo "1781"]
[Annotator "NA RC"]
[PlyCount "81"]
[EventDate "2021.01.10"]
[EventType "swiss"]
[EventCountry "ISR"]
[SourceTitle "playchess.com"]
[Source "ChessBase"]
[SourceQuality "1"]
[TimeControl "40/5400+30:3600+30"]

1. e4 {[%emt 0:00:00]} c5 {[%emt 0:00:00]} 2. Nf3 {[%emt 0:00:00]} d6 {[%emt 0:00:00]} 3. d4 {[%emt 0:00:00]} cxd4 {[%emt 0:00:04]} 4. Nxd4 {[%emt 0:00:00]} Nf6 {[%emt 0:00:13]} 5. Nc3 {[%emt 0:00:00]} a6 {[%emt 0:00:17]} 6. Bc4 {[%emt 0:04:49]} e6 {[%emt 0:01:06]} 7. Bb3 {[%emt 0:00:44]} Be7 {[%emt 0:02:58]} 8. O-O {[%emt 0:01:07]} Nc6 {[%emt 0:00:58]} 9. a4 {[%emt 0:07:55]} Qc7 {[%emt 0:02:39]} 10. h3 {[%emt 0:05:56]} O-O {[%emt 0:05:39]} 11. Be3 {[%emt 0:03:03]} Na5 {[%emt 0:03:38]} 12. f4 {[%emt 0:15:26]} Nc4 {[%emt 0:17:04]} 13. Bxc4 {[%emt 0:00:36]} Qxc4 {[%emt 0:00:02]} 14. Qd3 {[%emt 0:00:40]} Qxd3 {[%emt 0:02:25]} 15. cxd3 {[%emt 0:00:04]} Nd7 {[%emt 0:00:59]} 16. Rfd1 {[%emt 0:03:51]} Bf6 {[%emt 0:03:57]} 17. Nce2 {[%emt 0:09:08]} g6 {[%emt 0:09:04]} 18. Ra2 {[%emt 0:10:39]} b6 {[%emt 0:04:42]} 19. b4 {[%emt 0:05:04]} a5 {[%emt 0:03:04]} 20. bxa5 {[%emt 0:09:38]} Rxa5 {[%emt 0:01:41]} 21. Nb3 {[%emt 0:00:04]} Ra8 {[%emt 0:03:12]} 22. d4 {[%emt 0:00:25]} Bb7 {[%emt 0:02:37]} 23. Nc3 {[%emt 0:01:48]} Rfc8 {[%emt 0:03:09]} 24. Rc1 {[%emt 0:00:05]} Rc4 {[%emt 0:06:47]} 25. Nd2 {[%emt 0:01:02]} Rb4 {[%emt 0:01:01]} 26. Ne2 {[%emt 0:01:45]} Ba6 {[%emt 0:01:29]} 27. Rc7 {[%emt 0:04:45]} Nf8 {[%emt 0:02:42]} 28. Kf2 {[%emt 0:00:06]} Bxe2 {[%emt 0:00:30]} 29. Kxe2 {[%emt 0:00:04]} Bxd4 {[%emt 0:01:44]} 30. Nc4 {[%emt 0:01:22]} Bxe3 {[%emt 0:02:03]} 31. Kxe3 {[%emt 0:00:08]} d5 {[%emt 0:03:54]} 32. Nd6 {[%emt 0:01:34]} Rd8 {[%emt 0:02:30]} 33. e5 {[%emt 0:01:01]} Rd7 {[%emt 0:00:45]} 34. Rc6 {[%emt 0:01:42]} Ra7 {[%emt 0:05:57]} 35. Ne8 {[%emt 0:00:17]} Ra8 {[%emt 0:01:17]} 36. Nf6+ {[%emt 0:00:05]} Kg7 {[%emt 0:00:14]} 37. g4 {[%emt 0:01:00]} Rb8 {[%emt 0:02:53]} 38. Kf3 {[%emt 0:01:41]} Rc4 {[%emt 0:00:48]} 39. Rd6 {[%emt 0:00:31]} Rc3+ {[%emt 0:01:39]} 40. Kg2 {[%emt 0:00:12]} h6 {[%emt 0:00:38]} 41. Rb2 {[%emt 1:03:14]} 1/2-1/2

[Event "Israel-ch Women 2021"]
[Site "Haifa"]
[Date "2021.03.09"]
[Round "3.19"]
[White "Orian, Noga"]
[Black "Golovchanskaya, Alina"]
[Result "1/2-1/2"]
[ECO "D02"]
[WhiteElo "1658"]
[BlackElo "1681"]
[Annotator "NA RC"]
[PlyCount "99"]
[EventDate "2021.01.10"]
[EventType "swiss"]
[EventCountry "ISR"]
[SourceTitle "playchess.com"]
[Source "ChessBase"]
[SourceQuality "1"]
[TimeControl "40/5400+30:3600+30"]

1. d4 {[%emt 0:00:00]} Nf6 {[%emt 0:00:00]} 2. Nf3 {[%emt 0:00:00]} g6 {[%emt 0:00:00]} 3. Bf4 {[%emt 0:00:00]} Bg7 {[%emt 0:00:00]} 4. e3 {[%emt 0:00:00]} O-O {[%emt 0:00:13]} 5. Be2 {[%emt 0:00:58]} d5 {[%emt 0:00:05]} 6. h3 {[%emt 0:01:40]} Nbd7 {[%emt 0:04:27]} 7. O-O {[%emt 0:04:10]} Ne4 {[%emt 0:01:31]} 8. Nbd2 {[%emt 0:10:23]} c5 {[%emt 0:07:40]} 9. c3 {[%emt 0:00:59]} Qb6 {[%emt 0:03:24]} 10. Qc1 {[%emt 0:04:08]} Ndf6 {[%emt 0:01:20]} 11. Be5 {[%emt 0:00:49]} Bf5 {[%emt 0:03:59]} 12. Nxe4 {[%emt 0:03:23]} Nxe4 {[%emt 0:04:36]} 13. Bxg7 {[%emt 0:01:08]} Kxg7 {[%emt 0:00:11]} 14. Rd1 {[%emt 0:03:19]} c4 {[%emt 0:02:34]} 15. Nd2 {[%emt 0:06:53]} h5 {[%emt 0:08:34]} 16. Nxe4 {[%emt 0:04:37]} Bxe4 {[%emt 0:00:11]} 17. f3 {[%emt 0:05:29]} Bf5 {[%emt 0:00:11]} 18. Qd2 {[%emt 0:01:48]} Rac8 {[%emt 0:02:12]} 19. f4 {[%emt 0:06:42]} a5 {[%emt 0:08:05]} 20. Bf3 {[%emt 0:02:50]} Qe6 {[%emt 0:01:24]} 21. Qf2 {[%emt 0:04:58]} b5 {[%emt 0:10:06]} 22. a3 {[%emt 0:02:53]} Rb8 {[%emt 0:03:37]} 23. Re1 {[%emt 0:05:47]} Be4 {[%emt 0:00:25]} 24. Bxe4 {[%emt 0:02:36]} Qxe4 {[%emt 0:00:31]} 25. Qf3 {[%emt 0:00:56]} Qxf3 {[%emt 0:06:22]} 26. gxf3 {[%emt 0:00:03]} e6 {[%emt 0:00:23]} 27. e4 {[%emt 0:01:47]} Rfe8 {[%emt 0:04:11]} 28. Re2 {[%emt 0:00:48]} b4 {[%emt 0:02:12]} 29. axb4 {[%emt 0:02:54]} axb4 {[%emt 0:00:04]} 30. Ra5 bxc3 {[%emt 0:00:39]} 31. bxc3 {[%emt 0:05:52]} Rb1+ {[%emt 0:04:19]} 32. Kg2 {[%emt 0:00:26]} Rc1 {[%emt 0:02:59]} 33. exd5 Rxc3 {[%emt 0:00:24]} 34. dxe6 {[%emt 0:04:35]} Rxe6 {[%emt 0:00:22]} 35. Rxe6 {[%emt 0:00:07]} fxe6 {[%emt 0:00:04]} 36. d5 {[%emt 0:00:54]} exd5 {[%emt 0:00:08]} 37. Rxd5 {[%emt 0:00:02]} Rb3 {[%emt 0:07:01]} 38. Rc5 {[%emt 0:01:04]} c3 {[%emt 0:00:35]} 39. f5 {[%emt 0:05:53]} gxf5 {[%emt 0:07:41]} 40. Rxf5 {[%emt 0:00:54]} Rb2+ {[%emt 0:00:33]} 41. Kg3 {[%emt 1:00:31]} h4+ {[%emt 1:01:01]} 42. Kf4 {[%emt 0:06:30]} Rb4+ {[%emt 0:00:09]} 43. Ke3 {[%emt 0:00:24]} Rc4 {[%emt 0:00:22]} 44. Rg5+ {[%emt 0:00:10]} Kf6 {[%emt 0:00:56]} 45. Rg1 {[%emt 0:00:06]} c2 {[%emt 0:02:44]} 46. Rc1 {[%emt 0:00:13]} Rc3+ {[%emt 0:03:29]} 47. Kd4 {[%emt 0:01:05]} Rxf3 {[%emt 0:00:59]} 48. Rxc2 {[%emt 0:00:06]} Rxh3 {[%emt 0:00:15]} 49. Ke4 {[%emt 0:00:13]} Rg3 {[%emt 0:00:51]} 50. Kf4 {[%emt 0:00:44]} 1/2-1/2

[Event "Israel-ch Women 2021"]
[Site "Haifa"]
[Date "2021.03.09"]
[Round "3.22"]
[White "Gadasi, Noam"]
[Black "Aleksandrova, Aleksandra"]
[Result "1-0"]
[ECO "B12"]
[WhiteElo "1781"]
[BlackElo "1769"]
[Annotator "NA RC"]
[PlyCount "85"]
[EventDate "2021.01.10"]
[EventType "swiss"]
[EventCountry "ISR"]
[SourceTitle "playchess.com"]
[Source "ChessBase"]
[SourceQuality "1"]
[TimeControl "40/5400+30:3600+30"]

1. e4 {[%emt 0:00:00]} d6 {[%emt 0:00:00]} 2. d4 {[%emt 0:00:12]} c6 {[%emt 0:00:00]} 3. c4 {[%emt 0:00:30]} Qc7 {[%emt 0:00:06]} 4. Nc3 {[%emt 0:00:32]} Nd7 {[%emt 0:00:39]} 5. Be3 {[%emt 0:01:02]} Ngf6 {[%emt 0:00:44]} 6. f3 {[%emt 0:01:03]} e5 {[%emt 0:00:27]} 7. Nge2 {[%emt 0:01:02]} Be7 {[%emt 0:01:22]} 8. Qd2 {[%emt 0:01:28]} a5 {[%emt 0:01:20]} 9. g4 {[%emt 0:03:02]} h6 {[%emt 0:05:18]} 10. Ng3 {[%emt 0:05:32]} exd4 {[%emt 0:03:52]} 11. Bxd4 {[%emt 0:00:54]} Ne5 {[%emt 0:00:37]} 12. Be2 {[%emt 0:05:39]} Be6 {[%emt 0:10:04]} 13. b3 {[%emt 0:05:23]} d5 {[%emt 0:35:37]} 14. f4 Nexg4 {[%emt 0:08:33]} 15. h3 {[%emt 0:08:50]} c5 {[%emt 0:03:50]} 16. Nb5 {[%emt 1:02:51]} Qb8 {[%emt 0:25:31]} 17. Bb2 {[%emt 0:00:00]} Nh5 {[%emt 0:00:00]} 18. Nxh5 {[%emt 0:01:00]} Bh4+ {[%emt 0:01:00]} 19. Kf1 {[%emt 0:00:00]} Nf2 20. Be5 {[%emt 0:01:00]} Nxe4 {[%emt 0:01:00]} 21. Qe3 {[%emt 0:00:30]} Qd8 {[%emt 0:00:30]} 22. f5 {[%emt 0:00:30]} Bg5 {[%emt 0:00:00]} 23. Qd3 {[%emt 0:00:30]} Nd2+ {[%emt 0:01:00]} 24. Kg1 {[%emt 0:00:00]} d4 {[%emt 0:00:30]} 25. Qg3 {[%emt 0:01:00]} Bd7 {[%emt 0:00:30]} 26. Nxg7+ {[%emt 0:00:00]} Kf8 {[%emt 0:00:30]} 27. h4 {[%emt 0:00:00]} Be7 {[%emt 0:00:00]} 28. Ne6+ {[%emt 0:00:00]} Bxe6 {[%emt 0:00:00]} 29. Qg7+ {[%emt 0:00:00]} Ke8 {[%emt 0:00:00]} 30. Qxh8+ {[%emt 0:00:00]} Kd7 {[%emt 0:00:00]} 31. fxe6+ {[%emt 0:00:00]} fxe6 {[%emt 0:00:12]} 32. Qxd8+ {[%emt 0:00:00]} Rxd8 {[%emt 0:00:01]} 33. Kf2 {[%emt 0:00:00]} Ne4+ {[%emt 0:01:02]} 34. Ke1 {[%emt 0:00:00]} Rf8 {[%emt 0:00:06]} 35. Rh2 {[%emt 0:00:00]} Rf5 {[%emt 0:00:59]} 36. Bc7 {[%emt 0:00:00]} Nc3 {[%emt 0:01:28]} 37. Bxa5 {[%emt 0:00:00]} Nxe2 {[%emt 0:00:30]} 38. Kxe2 {[%emt 0:00:00]} Bf6 {[%emt 0:00:46]} 39. Rf1 {[%emt 0:00:00]} Rxf1 {[%emt 0:00:21]} 40. Kxf1 {[%emt 0:00:00]} e5 {[%emt 0:00:01]} 41. Bd2 {[%emt 0:57:38]} e4 {[%emt 1:00:30]} 42. Bxh6 {[%emt 0:00:32]} Be5 {[%emt 0:00:33]} 43. Rg2 {[%emt 0:00:39]} 1-0

[Event "Israel-ch Women 2021"]
[Site "Haifa"]
[Date "2021.03.09"]
[Round "3.23"]
[White "Shaul Seidner, Liad"]
[Black "Lian, Marina"]
[Result "0-1"]
[ECO "A08"]
[WhiteElo "1687"]
[BlackElo "1870"]
[Annotator "NA RC"]
[PlyCount "58"]
[EventDate "2021.01.10"]
[EventType "swiss"]
[EventCountry "ISR"]
[SourceTitle "playchess.com"]
[Source "ChessBase"]
[SourceQuality "1"]
[TimeControl "40/5400+30:3600+30"]

{[%evp 8,43,-14,-24,-5,0,0,0,32767,32767,32767,32767,32767,32767,32767,4,16,-32,-33,-31,-17,-50,22,-119,-105,-226,-237,-233,-241,-232,-209,-259,-250,-258,-231,-221,-196,-229]} 1. e4 {[%emt 0:00:00]} e6 {[%emt 0:00:00]} 2. d3 {[%emt 0:00:00]} d5 {[%emt 0:00:00]} 3. Nd2 {[%emt 0:00:00]} c5 {[%emt 0:00:00]} 4. Ngf3 {[%emt 0:00:00]} Nc6 {[%emt 0:00:00]} 5. g3 {[%emt 0:00:12]} g6 {[%emt 0:00:00]} 6. Bg2 {[%emt 0:00:10]} Bg7 {[%emt 0:00:07]} 7. O-O {[%emt 0:00:30]} Nge7 {[%emt 0:00:07]} 8. Re1 {[%emt 0:00:38]} h6 {[%emt 0:00:21]} 9. c3 {[%emt 0:00:45]} b6 {[%emt 0:00:28]} 10. exd5 {[%emt 0:05:18]} Nxd5 {[%emt 0:02:20]} 11. Nc4 {[%emt 0:13:45]} Qc7 {[%emt 0:14:14]} 12. Ng5 {[%emt 0:23:14]} O-O {[%emt 0:06:16]} 13. Ne4 {[%emt 0:04:00]} Rd8 {[%emt 0:01:18]} 14. a4 {[%emt 0:05:57]} a5 {[%emt 0:11:58]} (14... e5 $15) 15. Bd2 {[%emt 0:11:07]} (15. Ned2 $11) 15... f5 {[%emt 0:07:02]} 16. Ned6 {[%emt 0:04:41]} Rxd6 {[%emt 0:00:37]} 17. Nxd6 {[%emt 0:00:04]} Qxd6 {[%emt 0:00:10]} 18. Qb3 {[%emt 0:00:37]} Rb8 {[%emt 0:17:20]} 19. Re2 {[%emt 0:06:50]} Bd7 {[%emt 0:05:50]} 20. Rae1 {[%emt 0:02:01]} Kf7 {[%emt 0:05:12]} 21. h4 {[%emt 0:07:06]} Rb7 {[%emt 0:09:35]} 22. Bc1 $19 {[%emt 0:03:17]} Rb8 {[%emt 0:01:54]} 23. Bd2 {[%emt 0:00:50]} Re8 {[%emt 0:00:52]} 24. Bc1 {[%emt 0:04:04]} Ne5 {[%emt 0:01:21]} 25. Qc2 {[%emt 0:04:01]} Ng4 {[%emt 0:04:05]} 26. Bf3 {[%emt 0:01:48]} h5 {[%emt 0:01:38]} 27. Bg2 {[%emt 0:01:30]} Bc6 {[%emt 0:00:16]} 28. Bg5 {[%emt 0:00:49]} Qd7 {[%emt 0:02:31]} 29. Bxd5 {[%emt 0:00:44]} Qxd5 {[%emt 0:08:58]} 0-1

[Event "Israel-ch Women 2021"]
[Site "Haifa"]
[Date "2021.03.10"]
[Round "4.21"]
[White "Lian, Marina"]
[Black "Gadasi, Noam"]
[Result "1-0"]
[ECO "B23"]
[WhiteElo "1870"]
[BlackElo "1781"]
[Annotator "NA RC"]
[PlyCount "123"]
[EventDate "2021.01.10"]
[EventType "swiss"]
[EventCountry "ISR"]
[SourceTitle "playchess.com"]
[Source "ChessBase"]
[SourceQuality "1"]
[TimeControl "40/5400+30:3600+30"]

1. e4 {[%emt 0:00:00]} c5 {[%emt 0:00:00]} 2. Nc3 {[%emt 0:00:00]} Nc6 {[%emt 0:00:00]} 3. f4 {[%emt 0:00:00]} g6 {[%emt 0:00:14]} 4. Nf3 {[%emt 0:00:05]} Bg7 {[%emt 0:00:30]} 5. Bc4 {[%emt 0:01:29]} e6 {[%emt 0:00:38]} 6. f5 {[%emt 0:01:27]} Nge7 {[%emt 0:01:39]} 7. fxe6 {[%emt 0:00:37]} fxe6 {[%emt 0:00:45]} 8. d3 {[%emt 0:01:38]} d5 {[%emt 0:04:36]} 9. Bb3 {[%emt 0:01:21]} O-O {[%emt 0:01:49]} 10. a3 {[%emt 0:02:58]} Nd4 {[%emt 0:12:27]} 11. Nxd4 {[%emt 0:12:02]} Bxd4 {[%emt 0:11:02]} 12. Rf1 {[%emt 0:03:30]} b5 {[%emt 0:20:40]} 13. Bh6 {[%emt 0:28:46]} Rxf1+ {[%emt 0:11:23]} 14. Kxf1 {[%emt 0:00:01]} Bg7 {[%emt 0:06:50]} 15. Bxg7 {[%emt 0:00:18]} Kxg7 {[%emt 0:00:01]} 16. Nxb5 {[%emt 0:18:05]} Ba6 {[%emt 0:00:49]} 17. Nc3 {[%emt 0:04:47]} Qb6 {[%emt 0:01:13]} 18. Na4 {[%emt 0:02:03]} Qc7 {[%emt 0:00:29]} 19. Kg1 {[%emt 0:00:26]} Qe5 {[%emt 0:04:57]} 20. exd5 {[%emt 0:01:07]} Qd4+ {[%emt 0:01:24]} 21. Kh1 {[%emt 0:00:03]} exd5 {[%emt 0:00:12]} 22. Qe2 {[%emt 0:04:34]} Nf5 {[%emt 0:01:52]} 23. Qe6 {[%emt 0:00:54]} Bb5 {[%emt 0:04:11]} 24. Qxd5 {[%emt 0:03:57]} Qxd5 25. Bxd5 {[%emt 0:00:01]} Rd8 {[%emt 0:01:30]} 26. Nc3 {[%emt 0:00:02]} Ba6 {[%emt 0:01:41]} 27. Re1 {[%emt 0:01:49]} Rd7 {[%emt 0:02:04]} 28. Re6 {[%emt 0:00:45]} Bb7 29. Bxb7 {[%emt 0:02:51]} Rxb7 {[%emt 0:00:56]} 30. Na4 {[%emt 0:01:22]} Nd4 {[%emt 0:00:57]} 31. Re5 {[%emt 0:00:10]} Nxc2 {[%emt 0:01:38]} 32. Rxc5 {[%emt 0:00:03]} Nxa3 {[%emt 0:00:44]} 33. Kg1 {[%emt 0:00:49]} Nb5 {[%emt 0:01:30]} 34. Kf2 {[%emt 0:03:51]} Nd4 {[%emt 0:01:42]} 35. Rc4 {[%emt 0:01:22]} Rf7+ {[%emt 0:00:27]} 36. Ke3 {[%emt 0:00:39]} Nf5+ {[%emt 0:00:07]} 37. Ke2 {[%emt 0:00:52]} Rd7 {[%emt 0:01:42]} 38. Nc5 {[%emt 0:00:35]} Re7+ {[%emt 0:01:03]} 39. Kd2 {[%emt 0:01:10]} Ne3 {[%emt 0:00:53]} 40. Re4 {[%emt 0:01:32]} Rxe4 41. Nxe4 {[%emt 1:00:03]} Nxg2 {[%emt 1:00:42]} 42. d4 {[%emt 0:00:00]} Nf4 {[%emt 0:00:00]} 43. Kc3 {[%emt 0:00:00]} h6 {[%emt 0:00:00]} 44. Kc4 {[%emt 0:00:00]} Kf7 {[%emt 0:00:00]} 45. d5 {[%emt 0:00:00]} Ke7 {[%emt 0:00:00]} 46. d6+ {[%emt 0:00:00]} Kd7 {[%emt 0:00:00]} 47. Kd4 {[%emt 0:00:00]} g5 {[%emt 0:00:00]} 48. b3 {[%emt 0:00:00]} Kc6 {[%emt 0:00:00]} 49. Ke5 {[%emt 0:00:00]} Ng6+ {[%emt 0:00:00]} 50. Kf6 {[%emt 0:00:00]} Nf4 {[%emt 0:00:00]} 51. Ke7 {[%emt 0:02:12]} Ng6+ {[%emt 0:00:00]} 52. Kf6 {[%emt 0:01:34]} Nf4 {[%emt 0:00:00]} 53. Kg7 {[%emt 0:00:31]} h5 {[%emt 0:04:04]} 54. Kf6 {[%emt 0:00:25]} g4 {[%emt 0:03:21]} 55. Kg5 {[%emt 0:00:47]} Ne6+ {[%emt 0:00:49]} 56. Kxh5 {[%emt 0:00:04]} Kd5 {[%emt 0:00:20]} 57. Ng5 {[%emt 0:01:34]} ({Reject} 57. Kxg4 $6 Kxe4 58. d7 Ke5 $11) 57... Nd8 {[%emt 0:00:10]} (57... Nc5 $142) 58. d7 {[%emt 0:01:26]} Kd6 {[%emt 0:00:46]} 59. Kxg4 {[%emt 0:00:03]} Kxd7 {[%emt 0:00:09]} 60. Kf5 {[%emt 0:00:37]} Ke7 {[%emt 0:00:31]} 61. h4 {[%emt 0:00:21]} Kf8 {[%emt 0:00:40]} (61... Nc6 $16 62. Nf3 a6) 62. Ne6+ {[%emt 0:00:07]} 1-0

[Event "Israel-ch Women 2021"]
[Site "Haifa"]
[Date "2021.03.10"]
[Round "4.23"]
[White "Aleksandrova, Aleksandra"]
[Black "Shaul Seidner, Liad"]
[Result "1-0"]
[ECO "D00"]
[WhiteElo "1769"]
[BlackElo "1687"]
[Annotator "NA RC"]
[PlyCount "113"]
[EventDate "2021.01.10"]
[EventType "swiss"]
[EventCountry "ISR"]
[SourceTitle "playchess.com"]
[Source "ChessBase"]
[SourceQuality "1"]
[TimeControl "40/5400+30:3600+30"]

1. d4 {[%emt 0:00:00]} Nf6 {[%emt 0:00:00]} 2. Nd2 {[%emt 0:00:00]} d5 {[%emt 0:00:00]} 3. e3 {[%emt 0:00:00]} e6 {[%emt 0:00:01]} 4. Bd3 {[%emt 0:00:00]} c5 {[%emt 0:00:08]} 5. c3 {[%emt 0:00:00]} Nc6 {[%emt 0:00:10]} 6. f4 {[%emt 0:00:01]} Bd6 {[%emt 0:00:23]} 7. Ngf3 {[%emt 0:00:31]} O-O {[%emt 0:01:36]} 8. Ne5 {[%emt 0:02:27]} g6 {[%emt 0:10:48]} 9. O-O {[%emt 0:14:44]} Ne7 {[%emt 0:18:12]} 10. Rf3 {[%emt 0:02:25]} Nf5 {[%emt 0:04:28]} 11. Rh3 {[%emt 0:03:11]} h5 {[%emt 0:04:11]} 12. Ndf3 {[%emt 0:10:08]} Ng4 {[%emt 0:08:53]} 13. Ng5 {[%emt 0:15:21]} Bxe5 {[%emt 0:07:21]} 14. dxe5 {[%emt 0:00:11]} c4 {[%emt 0:23:35]} 15. Be2 {[%emt 0:10:09]} Nfh6 {[%emt 0:04:23]} 16. Qc2 {[%emt 0:07:57]} Nf5 {[%emt 0:05:09]} 17. Qd1 {[%emt 0:00:51]} Nfh6 {[%emt 0:00:11]} 18. Rf3 {[%emt 0:12:39]} Nf5 {[%emt 0:07:20]} 19. h3 {[%emt 0:11:16]} Ngh6 {[%emt 0:00:27]} 20. Rf2 {[%emt 0:00:59]} Qb6 {[%emt 0:01:19]} 21. Bxh5 {[%emt 0:03:48]} Nxe3 {[%emt 0:00:34]} 22. Qe2 {[%emt 0:00:01]} Nef5 {[%emt 0:00:45]} 23. Bf3 {[%emt 0:00:24]} Ng3 {[%emt 0:00:21]} 24. Qc2 {[%emt 0:01:02]} Nhf5 {[%emt 0:00:29]} 25. Kh2 {[%emt 0:00:21]} Bd7 {[%emt 0:00:44]} 26. Bg4 {[%emt 0:00:41]} Ne3 {[%emt 0:00:52]} 27. Bxe3 {[%emt 0:00:42]} Qxe3 {[%emt 0:00:02]} 28. Rf3 {[%emt 0:00:12]} Qe2 {[%emt 0:01:01]} 29. Qxe2 {[%emt 0:00:34]} Nxe2 {[%emt 0:00:02]} 30. Rf2 {[%emt 0:00:27]} Nxc3 {[%emt 0:00:19]} 31. bxc3 {[%emt 0:00:07]} b5 {[%emt 0:00:45]} 32. Bd1 {[%emt 0:00:26]} a5 {[%emt 0:00:12]} 33. a3 {[%emt 0:00:46]} Rab8 {[%emt 0:01:17]} 34. Rb2 {[%emt 0:00:34]} Rb7 {[%emt 0:00:28]} 35. Nf3 {[%emt 0:00:11]} Rfb8 {[%emt 0:00:09]} 36. Rab1 {[%emt 0:00:15]} Kf8 {[%emt 0:00:50]} 37. Nd4 {[%emt 0:00:15]} b4 {[%emt 0:00:24]} 38. axb4 {[%emt 0:00:51]} axb4 {[%emt 0:00:02]} 39. Rxb4 {[%emt 0:00:14]} Rxb4 {[%emt 0:00:19]} 40. Rxb4 {[%emt 0:00:02]} Ra8 {[%emt 0:00:24]} 41. Rb7 {[%emt 1:03:35]} Be8 {[%emt 1:00:59]} 42. Rb1 {[%emt 0:01:55]} Ra3 {[%emt 0:00:00]} 43. Ne2 {[%emt 0:00:00]} Kg7 {[%emt 0:00:00]} 44. Rc1 {[%emt 0:00:00]} Ra2 {[%emt 0:00:00]} 45. Nd4 {[%emt 0:00:00]} Rf2 {[%emt 0:00:00]} 46. Ne2 {[%emt 0:00:00]} Rf1 {[%emt 0:00:00]} 47. Kg3 {[%emt 0:00:00]} g5 {[%emt 0:00:00]} 48. Bc2 {[%emt 0:00:00]} gxf4+ {[%emt 0:00:00]} 49. Kg4 {[%emt 0:00:00]} Rf2 {[%emt 0:00:00]} 50. Nxf4 {[%emt 0:00:00]} Kh6 {[%emt 0:00:00]} 51. Kg3 {[%emt 0:00:00]} Rd2 {[%emt 0:00:00]} 52. h4 {[%emt 0:00:00]} Bc6 {[%emt 0:00:00]} 53. Bd1 {[%emt 0:00:00]} Bb5 {[%emt 0:00:00]} 54. Bh5 {[%emt 0:00:00]} Kg7 {[%emt 0:00:00]} 55. Rb1 {[%emt 0:00:00]} Be8 {[%emt 0:00:00]} 56. Rb8 {[%emt 0:00:00]} Bc6 {[%emt 0:00:00]} 57. Rc8 {[%emt 0:00:00]} 1-0